bitfinex-derivatives/quotes_SOLF0:USTF0_20251002
["timestamp","ask_amount","ask_price","bid_price","bid_amount"]
[1759381715645,4.0176,223.9,223.84,7.78]
[1759381717849,11.4776,223.9,223.84,7.78]
[1759381720054,7.46,223.89,223.85,9.91]
[1759381720253,7.46,223.89,223.85,17.69]
[1759381721456,7.46,223.89,223.85,9.91]
[1759381721754,1.3785203,223.89,223.85,9.91]
[1759381722051,4.0179,223.88,223.85,9.91]
[1759381722750,7.46,223.87,223.85,9.91]
[1759381722952,4.0179,223.88,223.85,9.91]
[1759381723253,7.46,223.87,223.85,9.91]
[1759381725152,4.0179,223.88,223.85,9.91]
[1759381725357,7.46,223.87,223.85,9.91]
[1759381725755,4.0179,223.88,223.85,9.91]
[1759381725961,7.46,223.87,223.85,9.91]
[1759381727961,4.0179,223.88,223.85,9.91]
[1759381728161,7.46,223.87,223.85,9.91]
[1759381728861,4.0179,223.88,223.85,9.91]
[1759381729164,12.8568203,223.86,223.85,9.91]
[1759381729357,15.94645791,223.86,223.85,9.91]
[1759381730457,12.8568203,223.86,223.85,9.91]
[1759381730856,7.46,223.86,223.85,9.91]
[1759381731158,3.08922035,223.87,223.85,9.91]
[1759381731356,3.08922035,223.89,223.86,7.78]
[1759381731558,7.46,223.9,223.86,7.78]
[1759381731865,7.46,223.9,223.87,7.78]
[1759381732461,3.08922035,223.91,223.86,7.78]
[1759381732661,4.46774065,223.92,223.86,7.78]
[1759381733258,1.3785203,223.92,223.86,7.78]
[1759381733663,8.48514065,223.92,223.86,7.78]
[1759381734157,7.3,223.91,223.86,7.78]
[1759381734362,1.3785203,223.92,223.86,7.78]
[1759381734565,7.3,223.91,223.86,7.78]
[1759381734763,1.3785203,223.92,223.86,7.78]
[1759381735164,11.3178,223.89,223.86,7.78]
[1759381735770,7.3,223.89,223.86,7.78]
[1759381737765,7.10828149,223.91,223.85,9.91]
[1759381738065,7.3,223.9,223.85,9.91]
[1759381738566,3.09068149,223.91,223.85,9.91]
[1759381739166,7.3,223.89,223.85,17.77]
[1759381739362,11.3179,223.88,223.85,17.77]
[1759381740067,11.3179,223.88,223.85,7.86]
[1759381741567,4.0179,223.88,223.82,7.86]
[1759381741766,7.11135368,223.9,223.82,7.86]
[1759381742171,7.11135368,223.9,223.83,9.2385203]
[1759381742364,3.09375368,223.9,223.83,9.2385203]
[1759381742969,3.09375368,223.9,223.85,7.86]
[1759381743171,3.09375368,223.9,223.84,9.9]
[1759381743371,3.09375368,223.9,223.85,7.86]
[1759381743566,3.09375368,223.9,223.84,9.9]
[1759381743967,3.09375368,223.9,223.85,7.86]
[1759381744168,3.09375368,223.9,223.84,9.9]
[1759381744372,3.09375368,223.89,223.84,9.9]
[1759381744675,3.09375368,223.9,223.84,9.9]
[1759381744870,3.09375368,223.89,223.84,9.9]
[1759381745070,3.09375368,223.9,223.84,17.76]
[1759381745372,3.09375368,223.89,223.84,9.9]
[1759381745569,3.09375368,223.9,223.84,9.9]
[1759381745770,3.09375368,223.89,223.84,9.9]
[1759381745968,3.09375368,223.9,223.85,7.86]
[1759381746168,3.09375368,223.89,223.85,7.86]
[1759381746367,3.09375368,223.9,223.85,7.86]
[1759381746574,10.39375368,223.89,223.86,7.86]
[1759381746768,7.3,223.89,223.86,7.86]
[1759381747171,10.37980394,223.89,223.86,7.86]
[1759381747368,1.3785203,223.94,223.86,7.86]
[1759381747570,8.6785203,223.92,223.86,7.86]
[1759381747770,10.38097126,223.91,223.85,7.86]
[1759381747969,3.08097126,223.9,223.86,1.3785203]
[1759381748175,4.0173,223.92,223.87,7.86]
[1759381748473,3.08089939,223.91,223.86,1.3785203]
[1759381748672,3.08089939,223.9,223.88,1.3785203]
[1759381748864,10.38210985,223.93,223.89,7.86]
[1759381749067,3.08210985,223.92,223.89,7.86]
[1759381749265,3.08210985,223.91,223.89,7.86]
[1759381749465,3.08210985,223.9,223.89,7.86]
[1759381749669,3.08298718,223.93,223.88,1.3785203]
[1759381749869,3.08298718,223.92,223.89,7.86]
[1759381750071,4.0169,223.94,223.89,7.86]
[1759381750269,3.08288244,223.93,223.89,7.86]
[1759381750474,3.08288244,223.92,223.89,7.86]
[1759381750673,3.08288244,223.91,223.89,7.86]
[1759381750874,4.0169,223.94,223.88,9.2385203]
[1759381751070,3.08379785,223.93,223.88,1.3785203]
[1759381751267,3.08379785,223.92,223.89,7.86]
[1759381751466,3.08379785,223.91,223.89,7.86]
[1759381751675,4.0169,223.94,223.88,9.2385203]
[1759381751875,3.08454448,223.93,223.88,9.2385203]
[1759381752071,3.08454448,223.92,223.89,7.86]
[1759381752377,3.08454448,223.91,223.89,7.86]
[1759381752577,4.0169,223.94,223.88,9.2385203]
[1759381752872,3.08520225,223.93,223.88,1.3785203]
[1759381753077,3.08520225,223.92,223.89,7.86]
[1759381753272,3.08520225,223.91,223.89,7.86]
[1759381753469,11.3169,223.94,223.88,1.3785203]
[1759381753674,3.0850553,223.93,223.88,1.3785203]
[1759381753879,3.0850553,223.92,223.89,7.86]
[1759381754078,11.3169,223.94,223.88,1.3785203]
[1759381754279,3.08495234,223.93,223.88,1.3785203]
[1759381754479,3.08495234,223.92,223.88,1.3785203]
[1759381754679,11.3169,223.94,223.88,9.2385203]
[1759381754880,3.08474141,223.93,223.88,1.3785203]
[1759381755074,3.08474141,223.92,223.89,7.86]
[1759381755274,11.3169,223.94,223.88,9.2385203]
[1759381755578,3.08444707,223.93,223.92,1.3785203]
[1759381755879,3.08444707,223.93,223.92,9.2385203]
[1759381757170,4.0161,223.99,223.92,9.2385203]
[1759381757375,3.08355994,223.98,223.95,9.2385203]
[1759381757578,3.08355994,223.97,223.95,9.2385203]
[1759381757778,4.0161,223.99,223.95,9.2385203]
[1759381757976,3.08225641,223.98,223.95,9.2385203]
[1759381758176,3.08225641,223.97,223.95,9.2385203]
[1759381758376,11.3161,223.99,223.95,9.2385203]
[1759381758672,10.38107711,223.98,223.95,7.86]
[1759381758877,3.08107711,223.97,223.95,7.86]
[1759381759182,3.0812833,223.96,223.95,7.86]
[1759381759585,3.0812833,223.96,223.94,1.3785203]
[1759381759785,7.3,223.98,223.94,1.3785203]
[1759381759985,10.3804888,223.97,223.94,1.3785203]
[1759381760185,3.0804888,223.96,223.94,1.3785203]
[1759381760484,3.07976513,223.96,223.94,1.3785203]
[1759381761279,7.3,223.97,223.94,1.3785203]
[1759381761786,3.07906093,223.96,223.94,1.3785203]
[1759381762088,3.07906093,223.96,223.94,8.5985203]
[1759381762282,7.3,223.97,223.94,8.5985203]
[1759381763280,10.37836501,223.97,223.94,8.5985203]
[1759381763476,7.3,223.97,223.94,8.5985203]
[1759381764085,10.37774878,223.97,223.94,8.5985203]
[1759381764388,7.3,223.97,223.94,8.5985203]
[1759381767294,4.0158,224.0,223.94,8.5985203]
[1759381767484,7.78,223.98,223.94,18.4985203]
[1759381767687,7.78,223.97,223.94,18.4985203]
[1759381769385,7.78,223.97,223.94,11.2785203]
[1759381769593,7.78,223.97,223.95,7.79]
[1759381773496,3.07547415,223.99,223.96,1.3785203]
[1759381773801,7.78,224.06,223.99,7.79]
[1759381773997,3.0744267,224.05,224.03,7.79]
[1759381774194,3.0744267,224.04,224.03,7.79]
[1759381774605,3.0744267,224.08,224.02,1.3785203]
[1759381774795,7.78,224.09,224.05,7.79]
[1759381774796,3.0744267,224.07,224.05,7.79]
[1759381774995,10.8544267,224.08,224.05,7.79]
[1759381775191,3.0744267,224.07,224.05,7.79]
[1759381775901,7.78,224.08,224.05,7.79]
[1759381776301,4.014,224.1,224.05,7.79]
[1759381776503,7.78,224.09,224.05,7.79]
[1759381776903,4.014,224.1,224.05,7.79]
[1759381777304,4.014,224.1,224.01,7.79]
[1759381779207,11.794,224.1,224.01,7.79]
[1759381780804,4.0143,224.08,224.01,7.79]
[1759381781009,7.78,224.07,224.01,7.79]
[1759381785609,62.446,224.08,224.02,10.99]
[1759381786006,2.15023297,224.1,224.02,10.99]
[1759381787011,4.0149,224.05,224.02,10.99]
[1759381787508,7.78,224.04,224.02,10.99]
[1759381788213,4.0149,224.05,224.02,10.99]
[1759381788413,7.78,224.04,224.02,10.99]
[1759381788614,4.0149,224.05,224.02,10.99]
[1759381789215,7.78,224.04,224.02,10.99]
[1759381790315,4.0149,224.05,224.02,10.99]
[1759381790514,7.78,224.04,224.02,10.99]
[1759381791811,4.0149,224.05,224.02,10.99]
[1759381792014,7.78,224.04,224.02,10.99]
[1759381792511,4.0152,224.03,224.02,10.99]
[1759381792716,11.7952,224.03,224.02,10.99]
[1759381805424,11.7952,224.03,224.01,2.86e-06]
[1759381806128,108.76,224.02,224.01,2.86e-06]
[1759381806328,116.21,224.02,224.01,2.86e-06]
[1759381808327,116.21,224.02,224.0,1.61230286]
[1759381808528,116.21,224.02,223.87,7.23]
[1759381808529,62.4757,223.98,223.87,7.23]
[1759381808732,7.45,223.95,223.87,7.23]
[1759381809136,7.45,223.95,223.87,8.58]
[1759381809326,4.017,223.94,223.87,8.58]
[1759381809931,7.45,223.95,223.87,8.58]
[1759381811735,4.0172,223.92,223.88,7.23]
[1759381812431,7.45,223.99,223.88,7.23]
[1759381812631,62.0,224.0,223.9,7.23]
[1759381813033,4.016,223.99,223.9,11.2475]
[1759381813228,4.016,223.99,223.91,7.23]
[1759381813738,11.4656,224.02,223.93,7.23]
[1759381816140,11.4656,224.02,223.94,7.23]
[1759381817733,11.4656,224.02,223.95,7.23]
[1759381823742,7.45,224.02,223.95,7.23]
[1759381828653,7.45,224.02,223.96,1.35]
[1759381830356,7.77,224.09,223.98,7.66]
[1759381831157,4.0145,224.07,223.98,7.66]
[1759381831354,7.77,224.07,223.98,7.66]
[1759381831758,4.0155,224.02,223.96,1.35]
[1759381831951,7.77,224.01,223.96,1.35]
[1759381832148,7.77,224.02,223.96,1.35]
[1759381832650,7.77,224.02,223.97,7.66]
[1759381832954,11.785,224.05,223.97,7.66]
[1759381836061,3.07709317,224.04,223.97,7.66]
[1759381836263,3.07709317,224.03,223.99,1.37665401]
[1759381836560,3.07709317,224.02,223.99,9.03665401]
[1759381836760,7.77,224.03,223.99,9.03665401]
[1759381836961,10.84699473,224.02,223.99,9.03665401]
[1759381837161,7.77,224.02,223.99,9.03665401]
[1759381837558,7.77,224.04,223.99,9.03665401]
[1759381837759,3.07705604,224.03,223.99,9.03665401]
[1759381837959,7.77,224.01,223.99,9.03665401]
[1759381840458,108.74,224.08,223.96,10.38665401]
[1759381840459,3.07667951,224.03,223.96,10.38665401]
[1759381840659,7.77,224.01,223.96,9.01]
[1759381840964,7.77,224.0,223.97,7.66]
[1759381841764,10.84672031,224.03,223.96,1.35]
[1759381841962,3.07672031,224.02,223.98,1.37665401]
[1759381842160,7.77,224.03,223.99,7.66]
[1759381842364,3.07645393,224.02,223.99,7.66]
[1759381842561,7.77,224.03,223.99,7.66]
[1759381842760,4.0149,224.05,223.99,7.66]
[1759381842761,10.84632033,224.02,223.99,7.66]
[1759381842955,7.77,224.02,223.98,1.37665401]
[1759381843164,7.77,224.06,224.01,1.37665401]
[1759381843362,3.07627359,224.05,224.02,7.66]
[1759381843563,3.07627359,224.04,224.02,7.66]
[1759381843864,3.07627359,224.03,224.02,7.66]
[1759381844064,10.84627359,224.05,224.02,7.66]
[1759381844266,3.07627359,224.04,224.02,7.66]
[1759381844568,3.07627359,224.03,224.02,7.66]
[1759381844767,3.07627359,224.04,224.02,7.66]
[1759381844956,10.84627359,224.03,223.97,9.03665401]
[1759381845163,10.84627359,224.02,223.98,7.66]
[1759381845366,1.37665401,224.08,223.98,7.66]
[1759381845562,7.77,224.01,223.97,1.37665401]
[1759381845761,7.77,223.99,223.96,1.35]
[1759381845957,7.77,223.97,223.96,1.35]
[1759381846165,10.84616924,223.97,223.96,1.35]
[1759381846464,3.07616924,223.97,223.96,1.35]
[1759381846969,10.84616924,223.97,223.96,1.35]
[1759381852974,3.07616924,223.97,223.96,1.35]
[1759381853175,3.07616924,224.02,223.96,10.38665401]
[1759381853381,7.77,224.0,223.96,10.38665401]
[1759381853677,7.77,223.98,223.96,1.35]
[1759381853883,10.84616924,223.98,223.96,1.35]
[1759381854075,7.82,224.04,223.96,1.35]
[1759381854271,7.82,224.02,223.96,1.35]
[1759381854475,3.07662929,224.01,223.96,1.35]
[1759381854676,7.82,223.99,223.96,1.35]
[1759381854870,10.89662929,223.98,223.96,1.35]
[1759381855178,3.07662929,223.97,223.96,1.35]
[1759381859681,10.89662929,223.97,223.96,1.35]
[1759381862080,3.07662929,223.97,223.96,1.35]
[1759381863285,10.89662929,223.97,223.96,1.35]
[1759381866686,62.4559,224.05,223.96,9.58]
[1759381866687,7.82,224.05,223.96,9.58]
[1759381866886,7.82,224.05,224.02,1.37665401]
[1759381867086,7.82,224.09,224.02,1.37665401]
[1759381867688,11.8342,224.09,224.02,1.37665401]
[1759381868684,11.8342,224.09,224.04,1.37665401]
[1759381868883,7.82,224.08,224.04,9.16665401]
[1759381869087,13.10148383,224.1,224.04,9.16665401]
[1759381875895,7.82,224.12,224.08,1.37665401]
[1759381876094,4.0133,224.14,224.08,1.37665401]
[1759381877495,7.82,224.13,224.08,1.37665401]
[1759381877697,4.0133,224.14,224.08,1.37665401]
[1759381878098,7.82,224.13,224.08,1.37665401]
[1759381878698,4.0133,224.14,224.08,1.37665401]
[1759381879004,4.0137,224.12,224.08,1.37665401]
[1759381879205,7.82,224.11,224.08,1.37665401]
[1759381880508,7.82,224.11,224.08,9.16665401]
[1759381881604,4.0137,224.12,224.08,9.16665401]
[1759381881805,7.92,224.11,224.08,9.16665401]
[1759381882104,4.0137,224.12,224.08,9.16665401]
[1759381882306,7.92,224.11,224.08,9.16665401]
[1759381882708,7.92,224.11,223.99,62.4708]
[1759381882709,4.014,224.1,224.02,7.88]
[1759381882909,7.92,224.09,224.06,1.37665401]
[1759381883210,4.014,224.1,224.04,1.37665401]
[1759381884108,11.634,224.1,224.04,1.37665401]
[1759381885203,7.62,224.1,224.04,1.37665401]
[1759381891007,7.62,224.1,224.05,1.35]
[1759381891212,7.62,224.11,224.05,1.35]
[1759381899112,7.62,224.11,224.05,9.29]
[1759381902314,7.62,224.11,224.05,1.35]
[1759381903821,11.634,224.11,224.05,1.35]
[1759381906414,7.62,224.11,224.05,1.35]
[1759381920824,11.7132,224.15,224.06,7.48]
[1759381921733,7.7,224.15,224.06,7.48]
[1759381923637,7.7,224.15,224.06,11.4945]
[1759381924738,4.0129,224.16,224.06,11.4945]
[1759381924927,7.7,224.14,224.05,1.35]
[1759381925626,3.06690277,224.13,224.05,1.35]
[1759381925828,7.7,224.11,224.05,1.35]
[1759381926026,7.7,224.09,224.05,1.35]
[1759381926226,3.06690277,224.08,224.05,1.35]
[1759381926426,10.76690277,224.07,224.05,1.35]
[1759381926731,3.06690277,224.06,224.05,1.35]
[1759381926932,10.76690277,224.06,224.05,1.35]
[1759381930142,10.76690277,224.06,224.01,7.48]
[1759381930334,3.06690277,224.05,224.01,7.48]
[1759381930534,3.06690277,224.04,224.0,4.0157]
[1759381930734,3.06690277,224.03,224.01,7.48]
[1759381930937,7.7,224.06,224.0,7.48]
[1759381931241,7.7,224.04,223.97,4.0162]
[1759381931441,3.08913674,224.03,223.97,4.0162]
[1759381931740,10.78913674,224.02,223.97,4.0162]
[1759381931941,7.7,224.02,223.98,7.48]
[1759381933230,7.7,224.02,223.99,1.35]
[1759381933435,4.0148,224.06,223.99,1.35]
[1759381933642,10.78732839,224.05,223.99,1.35]
[1759381933845,7.7,224.03,223.99,1.35]
[1759381934046,3.08732839,224.02,223.99,1.35]
[1759381934248,7.7,224.03,224.0,7.48]
[1759381934545,7.7,224.08,224.0,7.48]
[1759381934740,7.7,224.06,224.0,7.48]
[1759381934941,7.7,224.04,224.0,7.48]
[1759381935141,3.08679574,224.03,224.0,7.48]
[1759381935439,7.7,224.04,224.0,7.48]
[1759381935640,3.08648593,224.03,224.0,7.48]
[1759381935842,7.7,224.04,224.0,7.48]
[1759381936041,3.08648593,224.03,224.0,7.48]
[1759381936244,7.7,224.04,224.0,7.48]
[1759381937748,4.0149,224.05,223.99,1.35]
[1759381938047,10.78595513,224.04,223.99,1.35]
[1759381938343,7.7,224.02,223.99,1.35]
[1759381938542,7.7,224.0,223.99,1.35]
[1759381942051,10.89349799,224.01,223.99,1.35]
[1759381942252,7.81,224.01,223.99,1.35]
[1759381942552,4.0152,224.04,223.99,1.35]
[1759381942553,3.08295191,224.03,223.99,1.35]
[1759381942850,4.0152,224.04,223.99,1.35]
[1759381942851,7.81,224.01,223.99,1.35]
[1759381944246,7.63,224.01,223.99,1.35]
[1759381944454,4.0152,224.04,223.99,1.35]
[1759381944654,3.08205249,224.03,223.99,1.35]
[1759381944955,7.63,224.01,223.99,1.35]
[1759381945157,7.63,224.03,223.99,1.35]
[1759381945355,7.63,224.01,223.99,1.35]
[1759381945555,7.63,224.03,223.99,1.35]
[1759381945858,3.08170017,224.02,223.99,1.35]
[1759381946051,7.63,224.01,223.99,1.35]
[1759381946753,3.08170017,224.02,223.99,1.35]
[1759381946957,7.63,224.01,223.99,1.35]
[1759381947157,3.08170017,224.02,223.99,1.35]
[1759381947457,7.63,224.01,223.99,1.35]
[1759381948147,3.08170017,224.02,223.99,1.35]
[1759381948351,7.63,224.01,223.99,1.35]
[1759381950958,7.63,224.06,223.99,1.35]
[1759381951158,7.63,224.04,223.99,1.35]
[1759381951358,7.63,224.02,223.99,1.35]
[1759381951552,4.0151,224.05,223.99,1.35]
[1759381951748,10.71109125,224.04,223.99,1.35]
[1759381951957,7.63,224.02,223.99,1.35]
[1759381952157,3.08109125,224.02,223.99,1.35]
[1759381952358,7.63,224.03,224.0,7.8]
[1759381952552,10.71109125,224.03,224.0,7.8]
[1759381952762,4.0151,224.05,223.99,1.35]
[1759381952959,3.08079988,224.04,223.99,1.35]
[1759381953154,7.63,224.02,223.99,1.35]
[1759381953454,7.63,224.04,223.99,1.35]
[1759381953658,7.63,224.02,223.99,1.35]
[1759381953954,7.63,224.04,223.99,1.35]
[1759381954255,7.63,224.02,223.99,1.35]
[1759381954563,3.08081477,224.03,223.99,1.35]
[1759381954961,7.63,224.02,223.99,1.35]
[1759381955161,3.08081477,224.03,223.99,1.35]
[1759381955357,7.63,224.02,223.99,1.35]
[1759381955560,3.08081477,224.03,223.99,1.35]
[1759381955760,7.63,224.02,223.99,1.35]
[1759381957169,3.08081477,224.03,223.99,1.35]
[1759381958270,3.08081477,224.02,223.99,1.35]
[1759381958466,3.08081477,224.03,223.99,1.35]
[1759381958665,7.63,224.01,223.99,1.35]
[1759381958866,7.63,224.03,223.99,1.35]
[1759381959069,7.63,224.02,223.99,1.35]
[1759381959266,3.079155,224.03,223.99,1.35]
[1759381959773,7.63,224.02,223.99,1.35]
[1759381959971,3.079155,224.02,223.99,1.35]
[1759381960169,3.079155,224.03,223.99,1.35]
[1759381960370,3.079155,224.02,223.99,1.35]
[1759381960569,7.63,224.02,223.99,1.35]
[1759381960770,7.63,224.01,223.99,1.35]
[1759381960966,7.63,224.03,223.99,1.35]
[1759381961167,7.63,224.01,223.99,1.35]
[1759381961372,7.63,224.03,223.99,1.35]
[1759381961671,3.07984972,224.02,223.99,1.35]
[1759381961871,7.09524972,224.03,223.99,1.35]
[1759381962166,3.07984972,224.02,223.99,1.35]
[1759381962371,7.63,224.02,223.96,7.8]
[1759381962568,7.63,224.0,223.93,9.17687361]
[1759381962774,3.0802162,223.99,223.93,9.17687361]
[1759381962970,7.63,223.97,223.94,7.8]
[1759381963174,7.63,224.02,223.93,1.37687361]
[1759381963375,63.83857361,224.03,223.92,28.82]
[1759381963376,7.63,223.99,223.92,28.82]
[1759381963675,10.71074117,223.98,223.92,28.82]
[1759381963874,7.63,223.96,223.92,28.82]
[1759381964078,7.63,223.98,223.92,28.82]
[1759381964273,3.08115462,223.97,223.92,36.62]
[1759381964574,11.6463,223.98,223.92,36.62]
[1759381964768,10.71115462,223.97,223.88,7.8]
[1759381964974,7.63,223.95,223.88,7.8]
[1759381965475,7.63,223.95,223.89,1.34]
[1759381968080,7.63,223.93,223.89,1.34]
[1759381968276,1.37687361,223.97,223.89,1.34]
[1759381968474,7.63,223.95,223.89,1.34]
[1759381968681,7.63,223.93,223.89,1.34]
[1759381968980,3.08154275,223.92,223.89,1.34]
[1759381969181,10.71148168,223.93,223.89,1.34]
[1759381969376,7.63,223.9,223.89,1.34]
[1759381977681,3.07968401,223.91,223.89,8.89]
[1759381977882,10.46461759,223.94,223.9,7.55]
[1759381978084,7.39,223.94,223.9,7.55]
[1759381978292,7.39,223.94,223.89,2.71687361]
[1759381978485,7.39,223.94,223.9,7.55]
[1759381978984,3.07441174,223.95,223.9,7.55]
[1759381979178,7.39,223.97,223.9,7.55]
[1759381979379,10.46441174,223.97,223.9,7.55]
[1759381979578,3.07441174,223.96,223.9,7.55]
[1759381979779,7.39,223.96,223.9,7.55]
[1759381980181,11.4065,223.96,223.9,7.55]
[1759381980379,7.39,223.94,223.89,1.34]
[1759381981482,10.46441174,223.94,223.89,1.34]
[1759381981783,3.07441174,223.93,223.89,1.34]
[1759381982084,4.0169,223.94,223.89,1.34]
[1759381982284,7.39,223.93,223.89,1.34]
[1759381982481,7.39,223.92,223.89,1.34]
[1759381982685,3.07441174,223.93,223.89,1.34]
[1759381982885,7.39,223.93,223.89,1.34]
[1759381983185,4.0173,223.92,223.89,1.34]
[1759381984683,7.39,223.91,223.89,1.34]
[1759381984889,4.0173,223.92,223.89,1.34]
[1759381985085,7.39,223.91,223.89,1.34]
[1759381985489,4.0173,223.92,223.89,1.34]
[1759381985790,4.0176,223.9,223.89,1.34]
[1759381985992,11.4076,223.9,223.89,1.34]
[1759381989390,7.39,223.86,223.81,7.55]
[1759381989788,7.39,223.86,223.8,7.55]
[1759381991993,7.39,223.86,223.8,4.0193]
[1759381992591,7.39,223.86,223.81,7.55]
[1759381992793,7.39,223.86,223.8,4.0193]
[1759381993194,7.39,223.86,223.81,7.55]
[1759381993489,7.39,223.86,223.8,11.5693]
[1759381993694,7.39,223.86,223.8,7.55]
[1759381994891,1.37687361,223.91,223.8,11.5692]
[1759381995096,7.39,223.89,223.83,7.55]
[1759381996495,3.13203614,223.9,223.85,8.92687361]
[1759381996796,7.39,223.89,223.8,7.55]
[1759381996999,7.39,223.89,223.83,1.37687361]
[1759381997298,10.52203614,223.89,223.83,8.92687361]
[1759381999202,10.52203614,223.89,223.85,7.55]
[1759381999500,7.39,223.89,223.84,4.0186]
[1759381999700,7.39,223.89,223.85,7.55]
[1759381999997,7.39,223.89,223.84,4.0186]
[1759382000198,7.39,223.89,223.85,7.55]
[1759382000497,7.39,223.89,223.84,4.0186]
[1759382000898,7.39,223.89,223.85,7.55]
[1759382001400,7.39,223.89,223.84,4.0186]
[1759382001600,3.13408655,223.9,223.85,7.84]
[1759382001904,7.35,223.9,223.85,7.84]
[1759382002199,3.13408655,223.9,223.85,7.84]
[1759382002401,7.35,223.89,223.85,7.84]
[1759382002801,4.0178,223.89,223.83,1.37687361]
[1759382003002,7.35,223.88,223.84,7.84]
[1759382003397,7.35,223.88,223.83,1.37687361]
[1759382003899,7.35,223.88,223.84,7.35]
[1759382004802,7.35,223.88,223.83,1.37687361]
[1759382005204,7.35,223.88,223.84,7.35]
[1759382005403,10.48843555,223.88,223.84,7.35]
[1759382005705,7.35,223.88,223.84,7.35]
[1759382006501,7.35,223.88,223.83,1.37687361]
[1759382006702,7.35,223.88,223.84,11.3686]
[1759382006903,7.83,223.91,223.85,7.35]
[1759382007102,3.14149668,223.9,223.84,4.0186]
[1759382007307,3.14149668,223.89,223.85,7.35]
[1759382007506,10.97149668,223.88,223.85,7.35]
[1759382007702,7.83,223.88,223.85,7.35]
[1759382008209,3.14457149,223.87,223.85,7.35]
[1759382008409,7.83,223.88,223.85,7.35]
[1759382008610,3.14468032,223.87,223.85,7.35]
[1759382008908,7.83,223.88,223.85,7.35]
[1759382009102,3.14468032,223.87,223.85,7.35]
[1759382009302,7.83,223.9,223.83,1.37687361]
[1759382009499,3.14577269,223.89,223.83,1.37687361]
[1759382009705,7.83,223.87,223.84,7.35]
[1759382010206,3.14663776,223.86,223.84,7.35]
[1759382010509,7.83,223.87,223.84,7.35]
[1759382010807,3.14671645,223.86,223.84,7.35]
[1759382011009,7.83,223.87,223.84,7.35]
[1759382011208,3.14671645,223.86,223.84,7.35]
[1759382011404,7.83,223.87,223.84,7.35]
[1759382011604,3.14784681,223.86,223.84,7.35]
[1759382011805,7.83,223.87,223.84,7.35]
[1759382012007,3.14784681,223.86,223.84,7.35]
[1759382012208,7.83,223.87,223.84,7.35]
[1759382012398,3.14926896,223.86,223.84,7.35]
[1759382012706,7.83,223.87,223.84,7.35]
[1759382012907,3.14926896,223.86,223.84,7.35]
[1759382013111,7.83,223.87,223.84,7.35]
[1759382013306,3.14926896,223.86,223.84,7.35]
[1759382013506,3.14926896,223.85,223.84,7.35]
[1759382015214,10.97926896,223.85,223.83,8.72687361]
[1759382015408,7.83,223.85,223.83,8.72687361]
[1759382015608,4.0178,223.89,223.84,7.35]
[1759382015808,7.83,223.87,223.84,7.35]
[1759382016113,3.15004659,223.86,223.84,7.35]
[1759382016309,7.83,223.87,223.84,7.35]
[1759382016510,3.07547527,223.86,223.84,7.35]
[1759382016705,7.83,223.87,223.84,7.35]